bitfinex/quotes_ETHUSD_20250518
["timestamp","ask_amount","ask_price","bid_price","bid_amount"]
[1747594101832,4.05514019,2466.1,2465.7,0.8144]
[1747594102040,4.05547895,2465.8,2465.7,0.8144]
[1747594102331,4.0557821,2465.7,2465.5,17.509]
[1747594102537,4.05506898,2466.1,2465.5,18.22165602]
[1747594102695,0.04053918,2466.2,2465.5,18.22165602]
[1747594102894,8.0,2466.3,2465.6,8.834]
[1747594102895,4.05577618,2465.7,2465.6,8.834]
[1747594103828,4.05455249,2466.4,2465.6,8.834]
[1747594103992,8.55,2466.3,2465.6,8.834]
[1747594104199,4.05364515,2467.0,2465.6,8.834]
[1747594104535,4.05536803,2465.9,2465.7,0.7667]
[1747594104830,4.05547895,2465.8,2465.7,0.7667]
[1747594105023,4.05547895,2465.8,2465.7,6.7767]
[1747594105194,12.05547895,2465.8,2465.7,6.01]
[1747594105635,20.87747895,2465.8,2465.7,6.01]
[1747594106130,20.87747895,2465.8,2465.4,8.834]
[1747594106131,12.05597241,2465.5,2465.4,8.834]
[1747594106499,4.05679513,2465.0,2464.9,6.7767]
[1747594106704,4.05679513,2465.0,2464.9,9.6007]
[1747594106916,4.05665654,2465.1,2464.9,9.6007]
[1747594107116,4.0563239,2465.3,2464.9,9.6007]
[1747594107542,4.05630146,2465.3,2464.9,9.6007]
[1747594107909,8.822,2465.7,2465.0,1.29533213]
[1747594108244,4.05570608,2465.7,2465.0,7.30533213]
[1747594108409,4.05560324,2465.8,2465.2,4.05635808]
[1747594108602,4.05520034,2466.0,2465.3,10.83294572]
[1747594108837,0.7898,2466.5,2465.4,9.91729457]
[1747594109007,4.05510369,2466.1,2465.6,0.7515]
[1747594109207,4.05542514,2465.9,2465.6,0.7515]
[1747594109423,4.05511569,2466.1,2465.6,10.8173014]
[1747594109749,4.05523988,2466.0,2465.6,6.7615]
[1747594109949,4.05540137,2465.9,2465.6,6.7615]
[1747594110155,4.0552171,2466.0,2465.6,6.7615]
[1747594110317,4.05512228,2466.1,2465.6,6.7615]
[1747594110518,4.05512228,2466.1,2465.6,12.48513572]
[1747594110720,4.05490416,2466.2,2465.7,6.01]
[1747594111082,8.0,2466.4,2465.7,27.57751985]
[1747594111233,8.82,2466.6,2465.8,6.01]
[1747594111435,4.05506952,2466.1,2465.9,8.834]
[1747594111832,4.05515004,2466.0,2465.9,8.834]
[1747594112030,4.05462115,2466.4,2465.9,11.33247665]
[1747594112358,4.05452694,2466.4,2465.9,11.33247665]
[1747594112520,4.05449412,2466.4,2465.9,15.38768586]
[1747594112918,4.054213,2466.6,2465.9,0.7515]
[1747594112919,4.05515004,2466.0,2465.9,0.7515]
[1747594113118,4.05531448,2465.9,2465.8,6.01]
[1747594113318,4.05547895,2465.8,2465.7,26.346]
[1747594113569,12.05547895,2465.8,2465.7,8.834]
[1747594114051,12.80757895,2465.8,2465.7,8.834]
[1747594115646,13.35757895,2465.8,2465.7,8.834]
[1747594116261,13.35757895,2465.8,2465.0,17.511]
[1747594116262,0.55,2465.6,2465.0,17.511]
[1747594116461,4.05630146,2465.3,2465.2,8.817]
[1747594116668,12.05630146,2465.3,2465.2,8.817]
[1747594117364,8.0,2465.5,2465.2,8.817]
[1747594117568,0.7521,2466.1,2465.2,11.4498]
[1747594117869,8.817,2466.2,2465.3,4.85319442]
[1747594118029,4.05533429,2465.9,2465.4,4.05612475]
[1747594118233,12.87185635,2466.2,2465.3,0.7969]
[1747594118434,4.05581168,2465.6,2465.3,0.7969]
[1747594118768,4.05613693,2465.4,2465.3,2.02157]
[1747594118945,4.05613693,2465.4,2465.3,0.7969]
[1747594119332,4.05663056,2465.1,2465.0,18.3079]
[1747594119533,4.05663056,2465.1,2465.0,8.818]
[1747594120026,4.05720413,2464.8,2464.5,8.818]
[1747594120228,4.0571788,2464.8,2464.5,8.818]
[1747594120465,4.0569952,2464.9,2464.5,8.818]
[1747594120667,4.05745354,2464.6,2464.5,8.818]
[1747594121669,4.05745354,2464.6,2463.8,8.818]
[1747594121670,8.0,2464.4,2463.8,8.818]
[1747594121977,4.05813357,2464.2,2463.9,1.27757204]
[1747594122132,4.05814146,2464.2,2463.9,1.27757204]
[1747594122352,4.05844155,2464.0,2463.9,0.48067204]
[1747594123158,12.05844155,2464.0,2463.9,0.48067204]
[1747594123594,4.05844155,2464.0,2463.9,0.48067204]
[1747594123894,4.05903036,2463.7,2463.5,0.7969]
[1747594124076,4.05871222,2463.9,2463.6,8.82]
[1747594124269,0.55,2463.9,2463.2,8.82]
[1747594124485,4.058771,2463.8,2463.2,8.82]
[1747594124795,0.7726,2464.0,2463.4,4.05935758]
[1747594125014,8.0,2464.2,2463.3,0.7843]
[1747594125297,8.816,2464.3,2463.7,4.05892879]
[1747594125476,4.05770699,2464.5,2463.9,4.05852145]
[1747594125674,4.05695971,2464.9,2463.8,10.01019288]
[1747594125878,4.05787627,2464.4,2463.9,4.05859998]
[1747594126194,12.05712431,2464.8,2464.0,8.821]
[1747594126510,12.05718166,2464.8,2464.0,8.821]
[1747594126809,4.05811216,2464.2,2464.0,8.821]
[1747594127013,4.05827685,2464.1,2464.0,8.821]
[1747594127660,12.05827685,2464.1,2464.0,8.821]
[1747594128310,0.7726,2464.8,2464.0,8.821]
[1747594128462,4.05827685,2464.1,2464.0,8.821]
[1747594128659,4.05827685,2464.1,2463.6,18.2993]
[1747594128895,4.05893574,2463.7,2463.6,18.2993]
[1747594129198,4.05848643,2464.0,2463.6,27.1213]
[1747594129505,0.55,2464.3,2463.6,27.1213]
[1747594129662,4.84096173,2463.8,2462.7,0.7549]
[1747594129879,4.06011865,2463.0,2462.7,9.5769]
[1747594130082,4.05999168,2463.1,2462.7,9.5769]
[1747594130291,4.05956984,2463.4,2462.8,4.06041903]
[1747594130614,4.05947409,2463.4,2462.7,9.5769]
[1747594130820,4.05922002,2463.6,2463.0,4.06006609]
[1747594130980,4.05922002,2463.6,2463.1,0.79549427]
[1747594131314,4.05959485,2463.3,2463.2,8.822]
[1747594131719,4.05975966,2463.2,2463.0,17.52]
[1747594131883,4.05992448,2463.1,2463.0,17.52]
[1747594132087,4.05992448,2463.1,2463.0,26.342]
[1747594132787,4.0597467,2463.3,2463.0,26.342]
[1747594132991,0.7821,2463.5,2463.0,26.342]
[1747594133392,4.05992448,2463.1,2463.0,26.342]
[1747594134115,4.06047175,2462.8,2462.5,8.824]
[1747594134321,4.06059634,2462.7,2462.5,8.824]
[1747594134722,4.06072028,2462.7,2462.5,8.824]
[1747594134938,8.0,2463.0,2462.5,8.824]
[1747594135319,4.0607488,2462.6,2462.5,8.824]
[1747594135521,4.06049745,2462.8,2462.5,8.824]
[1747594135740,4.0606067,2462.7,2462.5,9.5909]
[1747594136036,4.06057465,2462.8,2462.6,8.825]
[1747594136238,8.818,2463.2,2462.6,8.825]
[1747594136239,4.05992398,2463.2,2462.6,8.825]
[1747594136533,0.7821,2463.5,2462.6,9.78419]
[1747594136837,4.05992314,2463.2,2462.7,4.06050334]
[1747594137038,4.05992314,2463.2,2462.6,13.84489765]
[1747594137336,4.05993961,2463.1,2462.6,8.825]
[1747594137545,4.06035244,2462.9,2462.6,8.825]
[1747594137839,4.05993961,2463.1,2462.6,8.825]
[1747594138137,12.88394749,2464.3,2462.8,4.06032636]
[1747594138301,4.05962117,2463.3,2462.8,4.06032636]
[1747594138698,0.8105,2463.5,2462.6,8.825]
[1747594139122,4.06001264,2463.1,2462.6,8.825]
[1747594139324,4.06051323,2462.8,2462.7,8.826]
[1747594139521,4.05959485,2463.3,2462.7,8.826]
[1747594139522,8.0,2463.1,2462.7,8.826]
[1747594139735,12.05943005,2463.4,2462.7,8.826]
[1747594139736,8.0,2463.3,2462.7,8.826]
[1747594139923,0.8105,2463.5,2462.7,12.88648113]
[1747594140112,8.818,2463.5,2462.8,4.87877486]
[1747594140302,4.05872139,2463.9,2463.1,4.05992448]
[1747594140507,4.05885301,2463.8,2463.3,4.05957714]
[1747594140726,4.05894465,2463.7,2463.2,12.88571847]
[1747594141059,4.05894465,2463.7,2463.2,10.60241655]
[1747594141221,0.8046,2464.4,2463.5,4.05926448]
[1747594141429,4.86194311,2464.7,2464.0,4.0584288]
[1747594141622,4.05844155,2464.0,2463.9,17.529]
[1747594141827,4.05811216,2464.2,2464.1,8.827]
[1747594142022,4.05844155,2464.0,2463.9,17.529]
[1747594142357,4.05844155,2464.0,2463.9,26.356]
[1747594142702,4.05844155,2464.0,2463.2,1.77641655]
[1747594142703,4.05860627,2463.9,2463.2,17.529]
[1747594142906,0.8046,2464.0,2463.3,8.827]
[1747594142907,4.05903222,2463.7,2463.3,8.827]
[1747594143141,4.05920233,2463.6,2463.3,8.827]
[1747594143755,8.0,2463.8,2463.2,17.529]
[1747594143959,4.05951421,2463.4,2463.3,8.826]
[1747594144113,4.05919944,2463.6,2463.3,8.826]
[1747594144457,4.05918275,2463.6,2463.3,8.826]
[1747594144663,4.05893862,2463.7,2463.3,8.826]
[1747594144969,4.05857256,2464.0,2463.4,4.0593472]
[1747594145171,4.05826789,2464.2,2463.5,0.7879]
[1747594145465,4.05862053,2463.9,2463.5,0.7879]
[1747594145664,8.787,2464.3,2463.5,0.7879]
[1747594145865,0.31106691,2464.8,2463.6,4.05901772]
[1747594145866,4.05822176,2464.2,2463.6,4.05901772]
[1747594146075,4.05808409,2464.3,2463.7,11.56044916]
[1747594146374,4.05762153,2464.5,2464.0,4.05835709]
[1747594146575,4.05766661,2464.5,2463.9,6.01]
[1747594146725,4.05708485,2464.9,2464.4,4.05777959]
[1747594146926,0.787,2465.0,2464.5,8.816]
[1747594147159,4.05745354,2464.6,2464.1,23.537]
[1747594147355,0.787,2465.0,2464.2,14.826]
[1747594147573,8.816,2465.2,2464.3,0.7879]
[1747594147940,4.0569583,2465.0,2464.4,4.05767562]
[1747594148184,13.4759957,2465.3,2464.3,0.7879]
[1747594148475,4.05760858,2464.6,2464.4,8.816]
[1747594148661,9.72055621,2465.3,2464.4,8.816]
[1747594148838,4.05704945,2464.9,2464.4,8.816]
[1747594149038,9.603,2465.3,2464.4,8.816]
[1747594149242,8.0,2465.2,2464.4,8.816]
[1747594149447,4.05723082,2464.8,2464.4,8.816]
[1747594149640,4.05715462,2464.8,2464.4,8.816]
[1747594149842,12.05651744,2465.2,2464.4,8.816]
[1747594150177,12.05651744,2465.2,2464.4,12.87363754]
[1747594150178,4.05689293,2465.0,2464.4,12.87363754]
[1747594150385,0.787,2465.3,2464.4,8.816]
[1747594150663,4.05689443,2465.0,2464.5,4.05760909]
[1747594150871,4.05687854,2465.0,2464.4,13.83408782]
[1747594151230,4.05726991,2464.8,2464.4,8.816]
[1747594151451,4.05685821,2465.0,2464.5,4.05760842]
[1747594151660,4.05608936,2465.5,2464.9,4.05684515]
[1747594151824,0.787,2465.9,2465.0,17.525]
[1747594152161,4.056466,2465.2,2465.1,8.815]
[1747594152670,4.05617573,2465.4,2465.1,8.815]
[1747594152964,4.05580791,2465.6,2465.1,8.815]
[1747594153257,4.05580791,2465.6,2465.0,17.525]
[1747594153258,4.056466,2465.2,2465.0,17.525]
[1747594153466,4.056466,2465.2,2465.1,8.814]
[1747594154465,0.787,2465.9,2465.1,8.814]
[1747594154769,4.05663056,2465.1,2465.0,17.525]
[1747594154945,4.05654527,2465.2,2465.0,26.339]
[1747594155140,4.05663056,2465.1,2465.0,17.525]
[1747594155345,12.05663056,2465.1,2465.0,26.339]
[1747594155840,0.7541,2465.3,2465.0,26.339]
[1747594156042,4.05660319,2465.2,2465.0,26.339]
[1747594156261,4.05608734,2465.5,2465.0,30.39578394]
[1747594156468,4.05645708,2465.3,2465.0,28.32730665]
[1747594156635,4.05646999,2465.2,2465.0,28.32730665]
[1747594156835,4.05646999,2465.2,2465.0,26.339]
[1747594157071,4.05602884,2465.5,2465.0,26.339]
[1747594157246,4.05621547,2465.4,2465.0,26.339]
[1747594157451,4.05637627,2465.3,2465.0,26.339]
[1747594157761,12.05663056,2465.1,2465.0,17.525]
[1747594157941,12.05679513,2465.0,2464.9,8.813]
[1747594158337,4.05761817,2464.5,2464.4,0.7602]
[1747594158543,4.05755961,2464.6,2464.3,17.52]
[1747594158847,4.05761817,2464.5,2464.4,8.812]
[1747594159761,0.55,2465.2,2464.4,8.812]
[1747594159762,4.05714543,2464.8,2464.4,8.812]
[1747594159939,4.05698535,2464.9,2464.4,10.41790491]
[1747594160272,4.05663056,2465.1,2464.4,10.41790491]
[1747594160451,4.05741868,2464.7,2464.4,10.41790491]
[1747594160652,4.05745354,2464.6,2464.4,10.41790491]
[1747594161066,4.05761817,2464.5,2464.4,10.41790491]
[1747594161236,4.05761817,2464.5,2464.3,17.52]
[1747594161439,4.05761817,2464.5,2463.8,6.01]
[1747594161440,4.058771,2463.8,2463.7,8.812]
[1747594161639,4.05959485,2463.3,2463.2,26.331]
[1747594161869,4.0593505,2463.5,2463.2,29.0121672]
[1747594162075,4.05927689,2463.5,2463.2,29.0121672]
[1747594162284,4.05959485,2463.3,2463.2,17.519]
[1747594162489,4.05959485,2463.3,2463.2,26.332]
[1747594163042,0.7841,2463.7,2463.2,26.332]
[1747594163238,4.05914587,2463.6,2463.2,26.332]
[1747594163579,4.05757322,2464.6,2463.4,0.7553]
[1747594163794,4.35473321,2465.0,2464.0,4.05835466]
[1747594164074,4.05773529,2464.5,2464.2,0.8054]
[1747594164278,4.05773529,2464.5,2464.3,8.813]
[1747594164581,4.05679513,2465.0,2464.3,8.813]
[1747594164750,4.05778282,2464.4,2464.3,8.813]
[1747594165077,4.05769863,2464.5,2464.3,11.52684]
[1747594165274,4.05681234,2465.0,2464.3,8.813]
[1747594165574,4.05778282,2464.4,2464.3,8.813]
[1747594166076,4.05811216,2464.2,2464.1,17.52]
[1747594166241,12.05811216,2464.2,2464.1,17.52]
[1747594166570,0.7618,2464.6,2464.1,18.12667585]
[1747594166777,0.7618,2464.6,2464.2,8.813]
[1747594166944,4.05786959,2464.4,2464.2,8.813]
[1747594167144,4.05762994,2464.5,2464.2,8.813]
[1747594167345,4.05794749,2464.3,2464.1,17.52]
[1747594167568,4.0578528,2464.4,2464.2,8.813]
[1747594167989,4.05811216,2464.2,2464.1,17.52]
[1747594168182,4.05811216,2464.2,2464.1,26.333]
[1747594168491,12.05726547,2464.8,2464.1,26.333]
[1747594168704,12.05712431,2464.8,2464.1,29.5673]
[1747594168997,8.0,2464.8,2464.1,29.5673]
[1747594169169,4.05758386,2464.6,2464.1,29.5673]
[1747594169371,4.0576402,2464.5,2464.1,29.5673]
[1747594169680,4.0576402,2464.5,2464.2,1.80027415]
[1747594170053,4.0574827,2464.6,2464.2,1.80027415]
[1747594170257,4.05764066,2464.5,2464.2,1.80027415]
[1747594170480,4.05753187,2464.6,2464.2,1.80027415]
[1747594170785,4.05760232,2464.6,2464.2,1.80027415]
[1747594170998,4.0576651,2464.5,2464.2,1.80027415]
[1747594171180,4.05779086,2464.4,2464.2,1.80027415]
[1747594171759,4.05770094,2464.5,2464.2,1.80027415]
[1747594171952,12.05713611,2464.8,2464.2,1.80027415]
[1747594172177,4.05811216,2464.2,2464.1,23.53]
[1747594172377,4.05811216,2464.2,2464.1,32.343]
[1747594172656,4.05802384,2464.3,2464.1,32.343]
[1747594172858,4.05659763,2465.2,2464.2,0.7867]
[1747594173058,0.8311,2465.6,2464.4,8.7867]
[1747594173364,4.05638321,2465.3,2464.7,4.05716787]
[1747594173670,4.05651212,2465.2,2464.9,0.7867]
[1747594174503,4.05618139,2465.4,2464.9,0.7867]
[1747594174695,4.05547895,2465.8,2465.1,4.0566302]
[1747594174860,4.05605419,2465.5,2465.1,8.24643302]
[1747594175159,4.05613782,2465.4,2465.1,8.24643302]
[1747594175586,4.05567941,2465.7,2465.1,8.24643302]
[1747594175768,4.05547895,2465.8,2465.1,8.24643302]
[1747594175983,4.05597956,2465.5,2465.1,8.24643302]
[1747594176298,4.05623769,2465.4,2465.2,3.86311777]
[1747594176473,4.05547895,2465.8,2465.3,8.807]
[1747594176790,4.05595301,2465.6,2465.3,8.807]
[1747594177095,9.6371,2466.2,2465.3,8.807]
[1747594177285,4.05550398,2465.8,2465.4,0.7867]
[1747594177590,4.05550398,2465.8,2465.4,1.4916995]
[1747594177794,6.05448654,2466.4,2465.4,5.54775615]
[1747594177998,4.05505991,2466.1,2465.4,11.55777245]
[1747594178310,4.05541711,2465.9,2465.5,8.806]
[1747594178501,4.05541711,2465.9,2465.5,14.816]
[1747594179100,0.04053918,2466.0,2465.5,6.01]
[1747594179257,4.05564342,2465.7,2465.6,8.806]
[1747594180071,4.05580791,2465.6,2465.5,6.01]
[1747594180275,4.05580791,2465.6,2465.5,14.815]
[1747594181892,4.05580791,2465.6,2465.0,17.521]
[1747594181893,4.056466,2465.2,2465.0,17.521]
[1747594182058,4.05663056,2465.1,2465.0,17.521]
[1747594182264,4.05663056,2465.1,2465.0,26.326]
[1747594183265,4.05679513,2465.0,2464.9,6.01]
[1747594183465,4.05761817,2464.5,2464.4,0.48067204]
[1747594183666,4.05761817,2464.5,2464.4,9.28467204]
[1747594183911,4.05761817,2464.5,2464.4,8.804]
[1747594185503,4.05778282,2464.4,2464.3,17.516]
[1747594185705,4.05761817,2464.5,2464.3,17.516]
[1747594185706,4.05771272,2464.5,2464.3,26.321]
[1747594186001,4.05778282,2464.4,2464.3,17.516]
[1747594186787,0.8159,2464.3,2463.9,8.805]
[1747594187103,4.05844155,2464.0,2463.9,8.805]
[1747594189922,4.05943005,2463.4,2463.3,17.518]
[1747594190078,4.05943005,2463.4,2463.3,26.324]
[1747594191209,4.05943005,2463.4,2463.3,17.518]
[1747594191408,4.05943005,2463.4,2463.3,26.324]
[1747594192316,4.05943005,2463.4,2463.3,17.518]
[1747594193413,4.05975966,2463.2,2463.1,8.808]
[1747594194592,0.55,2463.6,2463.1,8.808]
[1747594194796,4.05974644,2463.3,2463.1,8.808]
[1747594195309,4.05975966,2463.2,2463.1,8.808]
[1747594195735,4.05964437,2463.3,2463.1,8.808]
[1747594195882,4.05975966,2463.2,2463.1,8.808]
[1747594196081,4.0591005,2463.6,2463.1,8.808]
[1747594196511,8.0,2463.6,2463.1,8.808]
[1747594196711,4.05975966,2463.2,2463.1,8.808]
[1747594197124,8.0,2463.6,2463.1,8.808]
[1747594197291,8.0,2463.6,2463.3,0.7677]
[1747594197292,4.05914619,2463.6,2463.3,0.7677]
[1747594197491,4.0590725,2463.7,2463.3,0.7677]
[1747594197707,8.804,2464.2,2463.3,6.7777]
[1747594197910,4.05868777,2463.9,2463.4,4.73707261]
[1747594198129,4.05844155,2464.0,2463.4,9.48777]
[1747594198329,8.804,2464.2,2463.4,9.48777]
[1747594198330,4.05900428,2463.7,2463.4,9.48777]
[1747594199240,4.05910192,2463.6,2463.4,9.48777]
[1747594199414,4.05910192,2463.6,2463.4,8.81]
[1747594199615,12.05827685,2464.1,2463.4,8.81]
[1747594199919,4.05903872,2463.7,2463.4,8.81]
[1747594200636,4.05943005,2463.4,2463.3,14.82]
[1747594201649,4.05930238,2463.5,2463.3,14.82]
[1747594201937,0.8283,2464.3,2463.4,0.7772]
[1747594202235,4.05869328,2463.9,2463.4,24.31217403]
[1747594202437,4.05878825,2463.8,2463.4,24.31217403]
[1747594203039,4.05869047,2463.9,2463.4,28.37160343]
[1747594203333,4.05869047,2463.9,2463.4,32.25291298]
[1747594203830,4.05869047,2463.9,2463.5,6.01]
[1747594204034,4.05878365,2463.8,2463.5,6.01]
[1747594204337,4.05868903,2463.9,2463.5,6.01]
[1747594204543,4.05862277,2463.9,2463.5,6.01]
[1747594204837,0.8283,2464.6,2463.6,3.22528419]
[1747594205036,4.88576892,2464.6,2463.8,0.7772]
[1747594205239,4.05860627,2463.9,2463.7,6.01]
[1747594205545,4.058771,2463.8,2463.7,6.01]
[1747594205755,4.05926527,2463.5,2463.4,17.527]
[1747594205920,4.05970232,2463.3,2463.0,14.82]
[1747594206103,4.05970232,2463.3,2462.6,4.83785343]
[1747594206104,4.05975966,2463.2,2463.1,8.802]
[1747594206505,0.04053918,2463.2,2463.1,8.802]
[1747594206839,4.05975966,2463.2,2463.1,8.802]
[1747594207139,4.06016578,2463.0,2462.7,6.01]
[1747594207345,4.06016578,2463.0,2462.8,8.802]
[1747594207643,4.05986729,2463.2,2462.8,8.802]
[1747594207808,4.06002447,2463.1,2462.8,8.802]
[1747594208320,4.05978734,2463.2,2462.8,8.802]
[1747594208521,4.05975966,2463.2,2462.8,8.802]
[1747594208908,8.0,2463.4,2462.8,8.802]
[1747594209114,4.06041903,2462.8,2462.7,6.01]
[1747594209338,4.06041903,2462.8,2462.7,8.802]
[1747594212051,4.06041903,2462.8,2462.5,18.00767204]
[1747594212052,13.3997488,2462.6,2462.5,0.48067204]
[1747594212248,13.3997488,2462.6,2461.4,0.48067204]
[1747594212249,8.0,2462.4,2461.4,0.48067204]
[1747594212548,4.06199108,2461.9,2461.4,0.48067204]
[1747594212754,4.06218479,2461.8,2461.4,0.48067204]
[1747594213112,8.0,2462.2,2461.4,0.48067204]
[1747594213450,4.84980016,2462.6,2461.9,0.7565]
[1747594213633,4.06059863,2462.7,2462.2,4.06136693]
[1747594213838,0.789,2462.9,2462.0,26.335]
[1747594214149,4.06084147,2462.6,2462.1,3.11533427]
[1747594214352,4.06085122,2462.6,2462.2,8.804]
[1747594214550,4.06086013,2462.6,2462.0,17.531]
[1747594214732,0.789,2462.9,2462.3,12.86514606]
[1747594215052,4.06073285,2462.7,2462.3,8.804]
[1747594215753,4.06086304,2462.6,2462.4,8.804]
[1747594216320,4.06086304,2462.6,2462.0,21.5926308]
[1747594216549,4.06086304,2462.6,2462.1,12.86654908]
[1747594216853,0.8274,2463.2,2462.2,8.805]
[1747594217027,0.8274,2463.2,2462.3,4.83951783]
[1747594217028,4.06043594,2462.8,2462.3,4.83951783]
[1747594217729,4.06067267,2462.7,2462.3,0.7783]
[1747594217931,4.06081947,2462.6,2462.3,0.7783]
[1747594218150,8.0,2463.1,2462.4,8.805]
[1747594218355,0.8274,2463.5,2462.6,4.83896975]
[1747594218653,4.05860627,2463.9,2463.1,4.05982003]
[1747594218832,4.05905687,2463.7,2463.2,26.338]
[1747594219028,0.8274,2464.0,2463.2,26.338]
[1747594219229,3.69398433,2464.3,2463.3,7.44900045]
[1747594219456,13.92308916,2464.4,2463.4,4.05940131]
[1747594219619,4.05875671,2463.9,2463.3,7.44901049]
[1747594219817,4.05819465,2464.2,2463.6,4.05905722]
[1747594220060,4.05841299,2464.1,2463.7,8.805]
[1747594220252,9.5583,2464.4,2463.7,8.805]
[1747594220458,8.0,2464.2,2463.3,0.7557]
[1747594220756,4.05959485,2463.3,2463.2,17.533]
[1747594221146,0.7583,2463.7,2463.2,17.533]
[1747594221442,4.05942328,2463.5,2463.2,17.533]
[1747594221645,4.05961099,2463.3,2462.4,1.6362]
[1747594221854,0.4059611,2463.2,2462.4,13.62074646]
[1747594222160,8.0,2463.3,2462.4,13.62075452]
[1747594222347,4.0598523,2463.2,2462.6,4.06058616]
[1747594222658,4.05966645,2463.3,2462.8,4.06027569]
[1747594222860,0.7583,2463.6,2463.0,4.05998643]
[1747594223049,0.55,2464.0,2463.1,0.7557]
[1747594223050,4.05974371,2463.3,2463.1,0.7557]
[1747594223218,8.0,2463.7,2462.9,26.336]
[1747594223425,4.05983922,2463.2,2462.9,26.336]
[1747594223623,4.05996547,2463.1,2462.9,26.336]
[1747594223872,4.06008932,2463.0,2462.9,26.336]
[1747594224060,4.06001254,2463.1,2462.9,26.336]
[1747594224359,4.06008932,2463.0,2462.9,17.532]
[1747594224950,4.06000242,2463.1,2462.9,17.532]
[1747594225334,4.05934575,2463.5,2462.9,22.41589713]
[1747594225554,4.05943614,2463.4,2462.9,22.41589713]
[1747594226179,4.05910938,2463.6,2462.9,18.3557]
[1747594226395,0.8277,2463.9,2463.0,1.83557]
[1747594226677,4.05950868,2463.4,2463.0,1.83557]
[1747594226869,4.05972146,2463.3,2463.0,1.83557]
[1747594227052,0.8277,2463.9,2462.9,18.3557]
[1747594227053,4.06008932,2463.0,2462.9,17.532]
[1747594227224,4.06008932,2463.0,2462.9,26.336]
[1747594227425,8.0,2463.6,2462.9,26.336]
[1747594227636,8.0,2463.7,2462.9,26.336]
[1747594227833,12.05896938,2463.7,2463.1,4.88359352]
[1747594228153,3.47537426,2463.9,2463.3,4.05948615]
[1747594228353,4.885694,2464.3,2463.3,4.05948615]
[1747594228354,4.05803999,2464.3,2463.8,4.05872371]
[1747594228542,4.05778282,2464.4,2463.9,8.804]
[1747594228743,4.05831712,2464.1,2463.9,8.804]
[1747594229267,8.8277,2464.6,2463.9,8.804]
[1747594229670,4.05780436,2464.4,2463.9,8.804]
[1747594229835,4.05816432,2464.2,2463.9,8.804]
[1747594230040,4.05761817,2464.5,2463.9,8.804]
[1747594230263,4.05837811,2464.1,2463.9,11.84336422]
[1747594230462,4.05807197,2464.3,2464.0,8.804]
[1747594232079,4.05827685,2464.1,2464.0,8.804]
[1747594232274,4.05860627,2463.9,2463.8,17.531]
[1747594232477,4.05860627,2463.9,2463.8,26.334]
[1747594232981,4.05851967,2464.0,2463.8,26.334]
[1747594233178,4.05807666,2464.3,2463.8,26.334]
[1747594233383,4.05860627,2463.9,2463.8,26.334]
[1747594234079,4.05926527,2463.5,2463.4,8.802]
[1747594234250,4.05926527,2463.5,2463.1,17.529]
[1747594234251,12.05926527,2463.5,2463.1,17.529]
[1747594234451,4.06025417,2462.9,2462.8,8.802]
[1747594234784,4.06058391,2462.7,2462.6,0.48067204]
[1747594235000,12.10112309,2462.7,2462.6,0.48067204]
[1747594235221,12.61058391,2462.7,2462.6,0.48067204]
[1747594236132,12.06058391,2462.7,2462.6,0.48067204]
[1747594236316,20.85358391,2462.7,2462.6,0.48067204]
[1747594237111,21.16256514,2462.7,2462.6,0.48067204]
[1747594238018,21.16256514,2462.7,2462.0,8.795]
[1747594238019,4.0613505,2462.3,2462.0,8.795]
[1747594238318,0.7525,2462.9,2462.1,0.768]
[1747594238520,4.06118555,2462.4,2462.1,0.768]
[1747594239017,4.06171766,2462.1,2461.8,0.827]
[1747594239181,4.06148613,2462.2,2461.9,8.795]
[1747594239387,9.5465,2462.9,2462.0,0.04061408]
[1747594239588,4.06120749,2462.4,2461.9,14.69847328]
[1747594240006,4.0608908,2462.6,2462.0,4.06172144]
[1747594240307,4.86176977,2463.2,2462.2,0.827]
[1747594240494,4.05943005,2463.4,2462.5,4.06082908]
[1747594240796,4.06010485,2463.0,2462.6,26.73508291]
[1747594240998,4.06041903,2462.8,2462.7,8.796]
[1747594241808,4.06058391,2462.7,2462.6,17.533]
[1747594242020,4.06058391,2462.7,2462.6,26.329]
[1747594242418,4.06058391,2462.7,2462.6,17.533]
[1747594244594,0.802,2463.0,2462.6,17.533]
[1747594244793,9.596,2463.0,2462.6,17.533]
[1747594245122,4.06058391,2462.7,2462.6,17.533]
[1747594246638,4.06053933,2462.8,2462.6,17.533]
[1747594247234,4.0601518,2463.0,2462.6,17.533]
[1747594247420,4.06044388,2462.8,2462.6,17.533]
[1747594247934,4.06004891,2463.1,2462.6,20.1659]
[1747594248144,0.8263,2463.9,2462.9,4.06021362]
[1747594248289,4.05938188,2463.5,2463.0,8.796]
[1747594248493,8.0,2463.6,2463.1,1.4806]
[1747594248685,12.05916498,2463.6,2463.1,1.4806]
[1747594248889,4.05938233,2463.5,2463.1,1.4806]
[1747594249105,4.05938233,2463.5,2463.2,0.798]
[1747594249299,4.05884961,2463.8,2463.3,4.28735893]
[1747594249558,0.30927457,2463.9,2463.3,10.33799711]
[1747594249719,4.05920948,2463.6,2463.4,18.386]
[1747594250047,4.05890315,2463.8,2463.5,8.796]
[1747594250262,4.05904013,2463.7,2463.5,12.410786]
[1747594250405,4.0591005,2463.6,2463.5,18.420786]
[1747594250611,4.0590306,2463.7,2463.5,8.796]
[1747594251153,4.0591005,2463.6,2463.5,8.796]
[1747594251706,4.0591005,2463.6,2463.4,18.332]
[1747594251906,4.05926527,2463.5,2463.4,18.332]
[1747594252238,4.05926527,2463.5,2463.4,26.329]
[1747594253710,4.87110433,2463.5,2463.4,26.329]
[1747594253908,4.05926527,2463.5,2463.4,26.329]
[1747594254107,4.05926527,2463.5,2463.4,8.795]
[1747594255020,4.06025417,2462.9,2462.8,8.795]